[Event "GrandPrix_29.05"]
[Site "Chess.com"]
[Date "2020.05.29"]
[Round "4"]
[White "Karateloru"]
[Black "Matibar"]
[Result "0-1"]
[WhiteElo "2196"]
[BlackElo "2490"]
[TimeControl "600+2"]
[EndTime "10:55:31 PDT"]
[Termination "Matibar won by resignation"]

1. e4 {[%clk 0:10:01.9]} 1... d5 {[%clk 0:09:57.3]} 2. exd5 {[%clk 0:09:58.5]}
2... Qxd5 {[%clk 0:09:59.2]} 3. Nc3 {[%clk 0:09:56.8]} 3... Qd8 {[%clk
0:09:59.6]} 4. g3 {[%clk 0:09:48.1]} 4... Nf6 {[%clk 0:10:01.5]} 5. Bg2 {[%clk
0:09:49.1]} 5... c6 {[%clk 0:09:34.5]} 6. Nge2 {[%clk 0:09:47.1]} 6... Bf5
{[%clk 0:09:30.6]} 7. d4 {[%clk 0:09:46.7]} 7... e6 {[%clk 0:09:31.7]} 8. O-O
{[%clk 0:09:46.4]} 8... Be7 {[%clk 0:09:30.6]} 9. h3 {[%clk 0:09:40.7]} 9... h6
{[%clk 0:09:22.6]} 10. Bf4 {[%clk 0:09:16.4]} 10... Nbd7 {[%clk 0:09:13.3]} 11.
a3 {[%clk 0:09:15.4]} 11... Nb6 {[%clk 0:09:08]} 12. Re1 {[%clk 0:08:15]} 12...
O-O {[%clk 0:09:06.7]} 13. b3 {[%clk 0:07:55.1]} 13... Nbd5 {[%clk 0:08:15.4]}
14. Nxd5 {[%clk 0:07:54.9]} 14... cxd5 {[%clk 0:08:15.1]} 15. c4 {[%clk
0:07:48.9]} 15... dxc4 {[%clk 0:07:54]} 16. bxc4 {[%clk 0:07:50.8]} 16... Rc8
{[%clk 0:07:13.4]} 17. Qb3 {[%clk 0:07:40]} 17... b6 {[%clk 0:07:14]} 18. Bb7
{[%clk 0:07:08.9]} 18... Bxh3 {[%clk 0:07:09.2]} 19. Bxc8 {[%clk 0:07:09.2]}
19... Qxc8 {[%clk 0:07:09.8]} 20. Red1 {[%clk 0:07:09.7]} 20... Rd8 {[%clk
0:07:01.8]} 21. d5 {[%clk 0:06:43.6]} 21... Bc5 {[%clk 0:06:56.4]} 22. Be3
{[%clk 0:06:09.8]} 22... Bg4 {[%clk 0:06:37.7]} 23. Ra2 {[%clk 0:05:28.2]} 23...
exd5 {[%clk 0:06:06.7]} 24. cxd5 {[%clk 0:04:45.6]} 24... Qf5 {[%clk 0:05:24.1]}
25. Bxc5 {[%clk 0:04:34.5]} 25... bxc5 {[%clk 0:05:22.9]} 26. d6 {[%clk
0:03:57.9]} 26... Qh5 {[%clk 0:04:50.4]} 27. Kg2 {[%clk 0:02:21]} 27... Bxe2
{[%clk 0:04:25.5]} 28. Rh1 {[%clk 0:02:20]} 28... Qe5 {[%clk 0:04:03.7]} 29. Rd2
{[%clk 0:02:12.5]} 29... c4 {[%clk 0:03:46.1]} 30. Qe3 {[%clk 0:01:46.4]} 30...
Qxe3 {[%clk 0:03:42.5]} 31. fxe3 {[%clk 0:01:45.9]} 31... Bd3 {[%clk 0:03:44.1]}
32. Rh4 {[%clk 0:01:39.6]} 32... Rxd6 {[%clk 0:03:42.2]} 33. Kg1 {[%clk
0:01:35.9]} 33... Rb6 {[%clk 0:03:19.9]} 34. Rd4 {[%clk 0:01:34.4]} 34... Rb1+
{[%clk 0:03:20.8]} 35. Kh2 {[%clk 0:01:26.9]} 35... Be4 {[%clk 0:03:14.1]} 36.
g4 {[%clk 0:01:24.1]} 36... c3 {[%clk 0:03:12.4]} 37. Rd8+ {[%clk 0:01:22.9]}
37... Kh7 {[%clk 0:03:12.5]} 0-1

[Event "GrandPrix_29.05"]
[Site "Chess.com"]
[Date "2020.05.29"]
[Round "4"]
[White "Martin_Petrov2000"]
[Black "Guenplen"]
[Result "0-1"]
[WhiteElo "2127"]
[BlackElo "2321"]
[TimeControl "600+2"]
[EndTime "10:55:38 PDT"]
[Termination "Guenplen won by checkmate"]

1. c4 {[%clk 0:09:57.4]} 1... e6 {[%clk 0:10:00.2]} 2. Nf3 {[%clk 0:09:54.4]}
2... d5 {[%clk 0:10:00.8]} 3. e3 {[%clk 0:09:53.2]} 3... Nf6 {[%clk 0:09:59.9]}
4. b3 {[%clk 0:09:53.9]} 4... Bd6 {[%clk 0:09:56]} 5. Bb2 {[%clk 0:09:54.7]}
5... O-O {[%clk 0:09:51.9]} 6. d4 {[%clk 0:09:54.7]} 6... Ne4 {[%clk 0:09:04.6]}
7. Bd3 {[%clk 0:09:44.9]} 7... f5 {[%clk 0:09:01.4]} 8. O-O {[%clk 0:09:38.2]}
8... Nd7 {[%clk 0:08:55.8]} 9. Ne5 {[%clk 0:09:28.4]} 9... c6 {[%clk 0:08:51.5]}
10. f3 {[%clk 0:09:07.9]} 10... Ng5 {[%clk 0:08:01.5]} 11. Nd2 {[%clk
0:08:46.6]} 11... Nxe5 {[%clk 0:07:51.2]} 12. dxe5 {[%clk 0:08:45.7]} 12... Bc5
{[%clk 0:07:52.3]} 13. Qe2 {[%clk 0:07:30.2]} 13... Qb6 {[%clk 0:07:31.8]} 14.
Rfe1 {[%clk 0:07:29.5]} 14... f4 {[%clk 0:07:03]} 15. Nf1 {[%clk 0:07:27.7]}
15... Bd7 {[%clk 0:07:02.5]} 16. Kh1 {[%clk 0:07:22.3]} 16... fxe3 {[%clk
0:06:46.7]} 17. Nxe3 {[%clk 0:07:20.5]} 17... Be8 {[%clk 0:06:45.7]} 18. h4
{[%clk 0:06:04.1]} 18... Nxf3 {[%clk 0:06:36.1]} 19. gxf3 {[%clk 0:06:02.5]}
19... Bh5 {[%clk 0:06:36.9]} 20. Ng4 {[%clk 0:06:02.9]} 20... Bxg4 {[%clk
0:06:36.9]} 21. fxg4 {[%clk 0:05:31.3]} 21... Rf2 {[%clk 0:06:38.8]} 22. Qd1
{[%clk 0:04:08]} 22... Rxb2 {[%clk 0:06:33.7]} 23. Bc2 {[%clk 0:04:07.3]} 23...
dxc4 {[%clk 0:05:33.9]} 24. Qe2 {[%clk 0:04:01.6]} 24... c3 {[%clk 0:04:51.4]}
25. Rf1 {[%clk 0:03:46]} 25... Qd8 {[%clk 0:04:43]} 26. Rad1 {[%clk 0:03:24.6]}
26... Qxh4+ {[%clk 0:04:35]} 27. Kg2 {[%clk 0:03:24.7]} 27... Rf8 {[%clk
0:03:39.1]} 28. Rxf8+ {[%clk 0:03:10.4]} 28... Kxf8 {[%clk 0:03:40]} 29. Rd7
{[%clk 0:01:50.2]} 29... Rxc2 {[%clk 0:03:11.1]} 30. Qxc2 {[%clk 0:01:52.1]}
30... Qxg4+ {[%clk 0:03:11.6]} 31. Kh2 {[%clk 0:01:41]} 31... Bg1+ {[%clk
0:02:40.9]} 32. Kh1 {[%clk 0:01:41.4]} 32... Bd4 {[%clk 0:02:34.1]} 33. Qd3
{[%clk 0:01:29.1]} 33... Qg1# {[%clk 0:02:33.7]} 0-1

[Event "GrandPrix_29.05"]
[Site "Chess.com"]
[Date "2020.05.29"]
[Round "4"]
[White "Herracek"]
[Black "woodhy"]
[Result "1/2-1/2"]
[WhiteElo "2281"]
[BlackElo "2104"]
[TimeControl "600+2"]
[EndTime "10:55:49 PDT"]
[Termination "Game drawn by repetition"]

1. c4 {[%clk 0:10:01.9]} 1... b6 {[%clk 0:09:58.9]} 2. g3 {[%clk 0:10:02.4]}
2... Bb7 {[%clk 0:09:58.6]} 3. Nf3 {[%clk 0:10:03.9]} 3... e6 {[%clk 0:09:50.7]}
4. Bg2 {[%clk 0:10:04.4]} 4... f5 {[%clk 0:09:49.6]} 5. O-O {[%clk 0:10:02.7]}
5... Nf6 {[%clk 0:09:48.2]} 6. d3 {[%clk 0:10:03.6]} 6... Be7 {[%clk 0:09:47.4]}
7. Nc3 {[%clk 0:10:04.4]} 7... O-O {[%clk 0:09:48.2]} 8. e4 {[%clk 0:10:05.5]}
8... fxe4 {[%clk 0:09:44.7]} 9. Ng5 {[%clk 0:10:06.4]} 9... Qc8 {[%clk
0:08:59.2]} 10. Ngxe4 {[%clk 0:09:52.7]} 10... Nxe4 {[%clk 0:08:41]} 11. Nxe4
{[%clk 0:09:51.3]} 11... Na6 {[%clk 0:08:36.1]} 12. d4 {[%clk 0:09:49.2]} 12...
d5 {[%clk 0:08:20]} 13. cxd5 {[%clk 0:09:45.2]} 13... Bxd5 {[%clk 0:08:18.8]}
14. Re1 {[%clk 0:09:32.7]} 14... Qb7 {[%clk 0:08:16]} 15. Qh5 {[%clk 0:09:27.7]}
15... Rf5 {[%clk 0:07:52.1]} 16. Qe2 {[%clk 0:08:58.5]} 16... c5 {[%clk
0:06:40.5]} 17. dxc5 {[%clk 0:07:34.1]} 17... Nxc5 {[%clk 0:06:13.7]} 18. Nxc5
{[%clk 0:07:34.8]} 18... Bxc5 {[%clk 0:06:13.5]} 19. Bxd5 {[%clk 0:07:21.6]}
19... exd5 {[%clk 0:05:17.3]} 20. Bf4 {[%clk 0:07:21.6]} 20... Qf7 {[%clk
0:05:11]} 21. Qg4 {[%clk 0:06:59.1]} 21... Rf8 {[%clk 0:04:34.5]} 22. h4 {[%clk
0:06:38.5]} 22... h5 {[%clk 0:01:57.9]} 23. Qh3 {[%clk 0:06:38.9]} 23... Rxf4
{[%clk 0:01:52]} 24. gxf4 {[%clk 0:06:40.8]} 24... Qxf4 {[%clk 0:01:48.2]} 25.
Re2 {[%clk 0:06:40.4]} 25... Bxf2+ {[%clk 0:01:42.1]} 26. Kh1 {[%clk 0:06:13.4]}
26... Bxh4 {[%clk 0:01:40.2]} 27. Qe6+ {[%clk 0:06:00.6]} 27... Kh8 {[%clk
0:01:33.9]} 28. Qxd5 {[%clk 0:06:00.8]} 28... Qg4 {[%clk 0:01:31.4]} 29. Rh2
{[%clk 0:05:53.1]} 29... Rf5 {[%clk 0:00:44.5]} 30. Qa8+ {[%clk 0:05:50.2]}
30... Kh7 {[%clk 0:00:44.8]} 31. Rg1 {[%clk 0:05:49.7]} 31... Bg3 {[%clk
0:00:41.3]} 32. a4 {[%clk 0:04:49.3]} 32... Rf2 {[%clk 0:00:23.4]} 33. Rxg3
{[%clk 0:04:24.6]} 33... Rf1+ {[%clk 0:00:08.7]} 34. Kg2 {[%clk 0:04:21.7]}
34... Qe2+ {[%clk 0:00:09.2]} 35. Kh3 {[%clk 0:04:17.9]} 35... Qe6+ {[%clk
0:00:09.7]} 36. Kg2 {[%clk 0:04:08.4]} 36... Qe2+ {[%clk 0:00:08.9]} 37. Kh3
{[%clk 0:04:07.4]} 37... Qe6+ {[%clk 0:00:10.5]} 38. Kg2 {[%clk 0:04:02.6]}
38... Qe2+ {[%clk 0:00:10.9]} 1/2-1/2

[Event "GrandPrix_29.05"]
[Site "Chess.com"]
[Date "2020.05.29"]
[Round "4"]
[White "SipkeErnst"]
[Black "gliglu"]
[Result "0-1"]
[WhiteElo "2062"]
[BlackElo "2419"]
[TimeControl "600+2"]
[EndTime "10:55:53 PDT"]
[Termination "gliglu won by resignation"]

1. d4 {[%clk 0:10:01.9]} 1... Nf6 {[%clk 0:09:59.8]} 2. c4 {[%clk 0:10:01.8]}
2... e6 {[%clk 0:10:00.7]} 3. g3 {[%clk 0:10:03.1]} 3... d5 {[%clk 0:09:55.7]}
4. Nf3 {[%clk 0:10:03.5]} 4... dxc4 {[%clk 0:09:54]} 5. Bg2 {[%clk 0:10:03.5]}
5... Bb4+ {[%clk 0:09:51.8]} 6. Bd2 {[%clk 0:09:44.9]} 6... a5 {[%clk
0:09:39.5]} 7. O-O {[%clk 0:09:44.1]} 7... O-O {[%clk 0:09:39.6]} 8. Bc3 {[%clk
0:09:10.5]} 8... c5 {[%clk 0:08:30.6]} 9. dxc5 {[%clk 0:09:02]} 9... Qxd1 {[%clk
0:08:22.5]} 10. Rxd1 {[%clk 0:09:03.9]} 10... Bxc5 {[%clk 0:08:23.5]} 11. Ne5
{[%clk 0:08:39]} 11... Nd5 {[%clk 0:07:31.1]} 12. Nxc4 {[%clk 0:07:20.1]} 12...
Nc6 {[%clk 0:07:23.7]} 13. Bxd5 {[%clk 0:06:46.6]} 13... exd5 {[%clk 0:07:22.6]}
14. Rxd5 {[%clk 0:06:46.1]} 14... b6 {[%clk 0:07:23.4]} 15. Rd1 {[%clk 0:06:41]}
15... Bg4 {[%clk 0:07:11.8]} 16. Kf1 {[%clk 0:06:19.9]} 16... Rfe8 {[%clk
0:06:56.4]} 17. f3 {[%clk 0:06:05.1]} 17... Be6 {[%clk 0:06:24.3]} 18. Nba3
{[%clk 0:04:37.5]} 18... b5 {[%clk 0:05:18.4]} 19. Nd6 {[%clk 0:04:37.7]} 19...
Re7 {[%clk 0:04:20.9]} 20. Naxb5 {[%clk 0:04:11.1]} 20... Nb4 {[%clk 0:04:11]}
21. Bd4 {[%clk 0:03:54.9]} 21... Bxd4 {[%clk 0:03:34]} 22. Nxd4 {[%clk
0:03:54.8]} 22... Bxa2 {[%clk 0:03:34]} 23. Rac1 {[%clk 0:02:47.7]} 23... g6
{[%clk 0:03:24.4]} 24. Kf2 {[%clk 0:02:38.6]} 24... Rd8 {[%clk 0:03:05.5]} 25.
Nc6 {[%clk 0:02:20.1]} 25... Nxc6 {[%clk 0:03:03.6]} 26. Rxc6 {[%clk 0:02:21.9]}
26... Re6 {[%clk 0:02:30.5]} 27. Rd2 {[%clk 0:02:00.1]} 27... a4 {[%clk
0:02:24.7]} 28. g4 {[%clk 0:01:54.3]} 28... Bb3 {[%clk 0:02:19.1]} 29. g5 {[%clk
0:01:49]} 29... Kf8 {[%clk 0:02:13.7]} 30. Nf5 {[%clk 0:01:29.9]} 30... Rxd2
{[%clk 0:02:05.5]} 0-1

[Event "GrandPrix_29.05"]
[Site "Chess.com"]
[Date "2020.05.29"]
[Round "4"]
[White "Tormoz"]
[Black "Sakkcapak"]
[Result "1-0"]
[WhiteElo "2481"]
[BlackElo "2089"]
[TimeControl "600+2"]
[EndTime "10:55:53 PDT"]
[Termination "Tormoz won by resignation"]

1. e4 {[%clk 0:10:01.9]} 1... e6 {[%clk 0:10:00.3]} 2. Qe2 {[%clk 0:09:58.4]}
2... d5 {[%clk 0:09:14.8]} 3. exd5 {[%clk 0:09:58.8]} 3... Qxd5 {[%clk
0:09:15.5]} 4. Nc3 {[%clk 0:09:59.2]} 4... Qa5 {[%clk 0:08:57.5]} 5. Nf3 {[%clk
0:09:59.4]} 5... Nf6 {[%clk 0:08:58.1]} 6. g3 {[%clk 0:09:56.6]} 6... Be7 {[%clk
0:08:53.3]} 7. Bg2 {[%clk 0:09:57.4]} 7... O-O {[%clk 0:08:54.3]} 8. O-O {[%clk
0:09:58.6]} 8... Nc6 {[%clk 0:08:54]} 9. d4 {[%clk 0:09:58.4]} 9... Rd8 {[%clk
0:08:40.8]} 10. Rd1 {[%clk 0:09:58]} 10... Qh5 {[%clk 0:08:31.2]} 11. h3 {[%clk
0:09:50.6]} 11... Bd7 {[%clk 0:07:56.1]} 12. Bg5 {[%clk 0:09:01.9]} 12... Nd5
{[%clk 0:07:20.1]} 13. Nxd5 {[%clk 0:08:38.1]} 13... Bxg5 {[%clk 0:07:19.6]} 14.
Nxc7 {[%clk 0:08:28.2]} 14... Rac8 {[%clk 0:07:19.4]} 15. Nb5 {[%clk 0:08:29]}
15... Be8 {[%clk 0:06:58.8]} 16. c3 {[%clk 0:08:09.1]} 16... Be7 {[%clk
0:06:45.1]} 17. a4 {[%clk 0:07:57.8]} 17... a6 {[%clk 0:06:34.7]} 18. Na3 {[%clk
0:07:56.3]} 18... Na5 {[%clk 0:06:34.1]} 19. Nc2 {[%clk 0:07:05.4]} 19... Nb3
{[%clk 0:06:25.5]} 20. Ra2 {[%clk 0:07:04.6]} 20... Qa5 {[%clk 0:06:15.5]} 21.
Na1 {[%clk 0:06:46.4]} 21... Nxa1 {[%clk 0:05:42.4]} 22. Rdxa1 {[%clk
0:06:20.6]} 22... Qb6 {[%clk 0:05:07.4]} 23. Ne5 {[%clk 0:06:03.7]} 23... Rc7
{[%clk 0:04:01.5]} 24. Be4 {[%clk 0:05:04.6]} 24... f6 {[%clk 0:03:37.4]} 25.
Nc4 {[%clk 0:04:46.5]} 25... Qb3 {[%clk 0:03:33.6]} 26. Bd3 {[%clk 0:04:04.6]}
26... Bf7 {[%clk 0:03:14.9]} 27. Ra3 {[%clk 0:03:50.2]} 27... Bxa3 {[%clk
0:03:07]} 28. Rxa3 {[%clk 0:03:52.1]} 28... Qxa3 {[%clk 0:02:58.5]} 29. Nxa3
{[%clk 0:03:50.9]} 29... Re7 {[%clk 0:02:48.8]} 30. Nc4 {[%clk 0:03:40.9]} 30...
Be8 {[%clk 0:02:33.9]} 31. Nb6 {[%clk 0:03:33.6]} 31... Bc6 {[%clk 0:02:32.9]}
32. Be4 {[%clk 0:03:31.2]} 32... Bxe4 {[%clk 0:02:30.4]} 33. Qxe4 {[%clk
0:03:31.6]} 33... Rde8 {[%clk 0:02:18.8]} 34. a5 {[%clk 0:03:28.1]} 34... g6
{[%clk 0:02:18.5]} 35. Kg2 {[%clk 0:03:27.6]} 35... Kf7 {[%clk 0:02:19.1]} 36.
c4 {[%clk 0:03:27.2]} 36... Rd8 {[%clk 0:02:15.4]} 37. b4 {[%clk 0:03:25.9]}
37... h5 {[%clk 0:02:10]} 38. Qe3 {[%clk 0:03:20.2]} 38... Kg7 {[%clk
0:01:37.6]} 39. d5 {[%clk 0:03:14.8]} 39... e5 {[%clk 0:01:35.9]} 40. c5 {[%clk
0:03:15]} 40... Rc7 {[%clk 0:01:25]} 41. d6 {[%clk 0:03:10.8]} 41... Rf7 {[%clk
0:01:25.6]} 42. Qe4 {[%clk 0:03:07.6]} 1-0

[Event "GrandPrix_29.05"]
[Site "Chess.com"]
[Date "2020.05.29"]
[Round "4"]
[White "rusuvlad95"]
[Black "Iljin_Timofey"]
[Result "0-1"]
[WhiteElo "2097"]
[BlackElo "2282"]
[TimeControl "600+2"]
[EndTime "10:55:56 PDT"]
[Termination "Iljin_Timofey won by checkmate"]

1. e4 {[%clk 0:10:01.9]} 1... c5 {[%clk 0:09:54.7]} 2. Nf3 {[%clk 0:10:02.7]}
2... Nc6 {[%clk 0:09:55.7]} 3. c3 {[%clk 0:10:03.8]} 3... Nf6 {[%clk 0:09:56.3]}
4. e5 {[%clk 0:10:05.2]} 4... Nd5 {[%clk 0:09:57.4]} 5. d4 {[%clk 0:10:06.7]}
5... cxd4 {[%clk 0:09:59.3]} 6. cxd4 {[%clk 0:10:08]} 6... d6 {[%clk 0:10:00.2]}
7. Be2 {[%clk 0:10:09.4]} 7... dxe5 {[%clk 0:09:53.9]} 8. dxe5 {[%clk
0:10:11.3]} 8... g6 {[%clk 0:09:54.6]} 9. Nc3 {[%clk 0:09:13.8]} 9... Nxc3
{[%clk 0:09:51.5]} 10. Qxd8+ {[%clk 0:09:14]} 10... Nxd8 {[%clk 0:09:53.4]} 11.
bxc3 {[%clk 0:09:14.9]} 11... Bd7 {[%clk 0:09:54.2]} 12. Nd4 {[%clk 0:09:00.1]}
12... Bg7 {[%clk 0:09:49.3]} 13. f4 {[%clk 0:08:59.8]} 13... Rc8 {[%clk
0:09:47.1]} 14. Bd2 {[%clk 0:08:55.4]} 14... O-O {[%clk 0:09:47]} 15. O-O {[%clk
0:08:52.9]} 15... f6 {[%clk 0:09:44.4]} 16. exf6 {[%clk 0:07:47.5]} 16... Rxf6
{[%clk 0:09:46.3]} 17. Rad1 {[%clk 0:07:44.6]} 17... Rd6 {[%clk 0:09:43.7]} 18.
Nb5 {[%clk 0:07:40.6]} 18... Bxb5 {[%clk 0:09:34.5]} 19. Bxb5 {[%clk 0:07:34.7]}
19... Bxc3 {[%clk 0:09:35.6]} 20. Bxc3 {[%clk 0:07:26.8]} 20... Rxc3 {[%clk
0:09:37.5]} 21. Rxd6 {[%clk 0:07:11.9]} 21... exd6 {[%clk 0:09:39.4]} 22. Rd1
{[%clk 0:07:13.4]} 22... Ne6 {[%clk 0:09:16.6]} 23. Rxd6 {[%clk 0:07:10.6]}
23... Nxf4 {[%clk 0:09:17.2]} 24. Rd8+ {[%clk 0:07:04.6]} 24... Kg7 {[%clk
0:09:18.1]} 25. Rd7+ {[%clk 0:07:01.9]} 25... Kh6 {[%clk 0:09:18.8]} 26. Rxb7
{[%clk 0:07:01.2]} 26... Rc1+ {[%clk 0:09:07.3]} 27. Kf2 {[%clk 0:06:18.2]}
27... Rc2+ {[%clk 0:09:03]} 28. Kf3 {[%clk 0:05:18.8]} 28... Nxg2 {[%clk
0:09:00.8]} 29. Rxa7 {[%clk 0:05:13.6]} 29... Ne1+ {[%clk 0:08:59.4]} 30. Kg3
{[%clk 0:05:12.8]} 30... Rg2+ {[%clk 0:08:59.1]} 31. Kh3 {[%clk 0:05:10.3]}
31... Rg1 {[%clk 0:08:56.4]} 32. Bc6 {[%clk 0:04:55]} 32... Nd3 {[%clk
0:08:53.2]} 33. Bg2 {[%clk 0:04:03.9]} 33... Nf4+ {[%clk 0:08:50.2]} 34. Kg3
{[%clk 0:04:05.5]} 34... g5 {[%clk 0:08:51.3]} 35. h4 {[%clk 0:03:59.2]} 35...
Rxg2+ {[%clk 0:08:45]} 36. Kf3 {[%clk 0:03:59.5]} 36... Rd2 {[%clk 0:02:30.7]}
37. hxg5+ {[%clk 0:03:51.5]} 37... Kxg5 {[%clk 0:02:32.6]} 38. Rxh7 {[%clk
0:03:40.5]} 38... Nd5 {[%clk 0:02:24.3]} 39. Ra7 {[%clk 0:03:18.7]} 39... Kf5
{[%clk 0:02:20.5]} 40. Rf7+ {[%clk 0:03:15.4]} 40... Ke5 {[%clk 0:02:20.9]} 41.
a4 {[%clk 0:03:08.8]} 41... Rd3+ {[%clk 0:02:21.8]} 42. Ke2 {[%clk 0:03:06.9]}
42... Ra3 {[%clk 0:02:22.5]} 43. Ra7 {[%clk 0:03:02.9]} 43... Ke4 {[%clk
0:02:22]} 44. Kd2 {[%clk 0:02:59.2]} 44... Ra2+ {[%clk 0:02:21.5]} 45. Kc1
{[%clk 0:02:59.4]} 45... Kd3 {[%clk 0:02:20.5]} 46. Ra8 {[%clk 0:02:46.5]} 46...
Rc2+ {[%clk 0:02:15.1]} 47. Kd1 {[%clk 0:02:38.8]} 47... Ne3+ {[%clk 0:02:15.6]}
48. Ke1 {[%clk 0:02:40.3]} 48... Re2# {[%clk 0:02:16.9]} 0-1

[Event "GrandPrix_29.05"]
[Site "Chess.com"]
[Date "2020.05.29"]
[Round "4"]
[White "FLamps8"]
[Black "abraham1982"]
[Result "1-0"]
[WhiteElo "2167"]
[BlackElo "2110"]
[TimeControl "600+2"]
[EndTime "10:56:04 PDT"]
[Termination "FLamps8 won on time"]

1. d4 {[%clk 0:10:01.9]} 1... Nf6 {[%clk 0:08:34.9]} 2. Bf4 {[%clk 0:10:01.5]}
2... c5 {[%clk 0:08:30.6]} 3. e3 {[%clk 0:09:51.1]} 3... e6 {[%clk 0:08:28.8]}
4. c3 {[%clk 0:09:50.4]} 4... Be7 {[%clk 0:08:27.6]} 5. Bd3 {[%clk 0:09:49.6]}
5... O-O {[%clk 0:08:27.4]} 6. h3 {[%clk 0:09:49.2]} 6... b6 {[%clk 0:08:25.8]}
7. Nf3 {[%clk 0:09:50.1]} 7... Bb7 {[%clk 0:08:24.7]} 8. Nbd2 {[%clk 0:09:51.5]}
8... Re8 {[%clk 0:08:16.6]} 9. Qe2 {[%clk 0:09:48.6]} 9... Nc6 {[%clk
0:07:50.4]} 10. Rd1 {[%clk 0:09:38.9]} 10... d6 {[%clk 0:07:41]} 11. a3 {[%clk
0:09:28.1]} 11... Qc7 {[%clk 0:07:39.5]} 12. Bh2 {[%clk 0:08:54.8]} 12... Rad8
{[%clk 0:07:15.3]} 13. e4 {[%clk 0:08:38.8]} 13... cxd4 {[%clk 0:07:06.6]} 14.
cxd4 {[%clk 0:08:40.7]} 14... e5 {[%clk 0:07:04.7]} 15. d5 {[%clk 0:08:26.7]}
15... Nd4 {[%clk 0:07:03.7]} 16. Nxd4 {[%clk 0:08:23.7]} 16... exd4 {[%clk
0:07:03.6]} 17. O-O {[%clk 0:08:17.5]} 17... Bf8 {[%clk 0:06:54.9]} 18. Rc1
{[%clk 0:08:03.9]} 18... Qb8 {[%clk 0:06:51.3]} 19. Bb5 {[%clk 0:07:52.9]} 19...
Re7 {[%clk 0:06:34.6]} 20. Qd3 {[%clk 0:07:53.8]} 20... a6 {[%clk 0:06:05.7]}
21. Bc6 {[%clk 0:07:42.1]} 21... Bxc6 {[%clk 0:06:03]} 22. Rxc6 {[%clk 0:07:44]}
22... Rc7 {[%clk 0:05:52.7]} 23. Rfc1 {[%clk 0:07:40.4]} 23... Rxc6 {[%clk
0:05:41.8]} 24. Rxc6 {[%clk 0:07:42.3]} 24... Nd7 {[%clk 0:05:36.3]} 25. Qxa6
{[%clk 0:07:21.3]} 25... Re8 {[%clk 0:05:04.5]} 26. f3 {[%clk 0:06:41.1]} 26...
g6 {[%clk 0:04:24.5]} 27. Nc4 {[%clk 0:06:22.3]} 27... d3 {[%clk 0:03:59.9]} 28.
Nxd6 {[%clk 0:04:20.5]} 28... Ne5 {[%clk 0:03:19.6]} 29. Nxe8 {[%clk 0:04:04.8]}
29... Qxe8 {[%clk 0:03:04.2]} 30. Bxe5 {[%clk 0:03:55.1]} 30... d2 {[%clk
0:02:07.3]} 31. Qd3 {[%clk 0:03:55.2]} 31... Qxe5 {[%clk 0:01:58.5]} 32. Qxd2
{[%clk 0:03:55.8]} 32... Bc5+ {[%clk 0:00:57.1]} 33. Rxc5 {[%clk 0:03:53]} 33...
bxc5 {[%clk 0:00:49.9]} 34. d6 {[%clk 0:03:53.8]} 34... Qe8 {[%clk 0:00:40.6]}
35. d7 {[%clk 0:03:54.8]} 35... Qd8 {[%clk 0:00:22.4]} 36. Qd5 {[%clk
0:03:55.4]} 1-0

[Event "GrandPrix_29.05"]
[Site "Chess.com"]
[Date "2020.05.29"]
[Round "4"]
[White "Pash2015"]
[Black "faraone99"]
[Result "1-0"]
[WhiteElo "2200"]
[BlackElo "2071"]
[TimeControl "600+2"]
[EndTime "10:56:11 PDT"]
[Termination "Pash2015 won by resignation"]

1. e4 {[%clk 0:10:01.9]} 1... e5 {[%clk 0:10:00.8]} 2. d4 {[%clk 0:09:50.7]}
2... exd4 {[%clk 0:10:00.7]} 3. Nf3 {[%clk 0:09:51.8]} 3... Nc6 {[%clk
0:10:01.3]} 4. Bc4 {[%clk 0:09:45.5]} 4... Nf6 {[%clk 0:09:24.8]} 5. Qe2 {[%clk
0:09:20.8]} 5... d6 {[%clk 0:08:50.7]} 6. Bb5 {[%clk 0:09:13.5]} 6... Bd7 {[%clk
0:08:45.8]} 7. O-O {[%clk 0:09:08.8]} 7... Be7 {[%clk 0:08:42.2]} 8. Bxc6 {[%clk
0:09:02.8]} 8... bxc6 {[%clk 0:08:41.5]} 9. Nxd4 {[%clk 0:09:02.3]} 9... O-O
{[%clk 0:08:42.2]} 10. Nc3 {[%clk 0:08:59.1]} 10... c5 {[%clk 0:08:41.3]} 11.
Nf5 {[%clk 0:08:43.1]} 11... Bxf5 {[%clk 0:07:25.7]} 12. exf5 {[%clk 0:08:40.2]}
12... Qd7 {[%clk 0:07:26.8]} 13. Qf3 {[%clk 0:08:29.8]} 13... Rab8 {[%clk
0:07:21.3]} 14. b3 {[%clk 0:08:25.7]} 14... Rfe8 {[%clk 0:07:20.5]} 15. Bb2
{[%clk 0:08:09.5]} 15... d5 {[%clk 0:05:43.6]} 16. Rad1 {[%clk 0:07:54.7]} 16...
c6 {[%clk 0:05:44.2]} 17. Na4 {[%clk 0:07:46.9]} 17... Bd6 {[%clk 0:05:14.3]}
18. Bxf6 {[%clk 0:07:11.9]} 18... gxf6 {[%clk 0:05:16.2]} 19. c4 {[%clk
0:07:12.9]} 19... d4 {[%clk 0:05:13.2]} 20. Rfe1 {[%clk 0:07:09.9]} 20... Kh8
{[%clk 0:05:08.9]} 21. Nb2 {[%clk 0:06:58.3]} 21... Rg8 {[%clk 0:05:08.3]} 22.
Nd3 {[%clk 0:06:51.1]} 22... Rg5 {[%clk 0:05:08.1]} 23. Re4 {[%clk 0:06:45.7]}
23... Rbg8 {[%clk 0:04:36.6]} 24. g3 {[%clk 0:06:39.8]} 24... Rxf5 {[%clk
0:04:27.5]} 25. Qe2 {[%clk 0:06:40.4]} 25... Rfg5 {[%clk 0:04:24.3]} 26. Re1
{[%clk 0:06:38]} 26... Qh3 {[%clk 0:04:21.4]} 27. Qf3 {[%clk 0:06:33.4]} 27...
R5g6 {[%clk 0:04:18.1]} 28. Re8 {[%clk 0:06:26.7]} 28... Rh6 {[%clk 0:03:48.9]}
29. Qxc6 {[%clk 0:05:57.9]} 29... Qxh2+ {[%clk 0:03:37.3]} 30. Kf1 {[%clk
0:05:58.9]} 30... Qh3+ {[%clk 0:03:22.1]} 31. Ke2 {[%clk 0:05:52.4]} 31... Rxe8+
{[%clk 0:02:59.6]} 32. Qxe8+ {[%clk 0:05:54.2]} 32... Kg7 {[%clk 0:03:01.1]} 33.
Kd2 {[%clk 0:05:55.2]} 33... Qf5 {[%clk 0:02:58.2]} 34. Qc6 {[%clk 0:05:43.5]}
34... Be5 {[%clk 0:02:39.8]} 35. Qxc5 {[%clk 0:05:38.8]} 35... Rh2 {[%clk
0:02:40.3]} 36. Qd5 {[%clk 0:05:23.8]} 36... Rxf2+ {[%clk 0:01:51.1]} 37. Nxf2
{[%clk 0:05:15.5]} 37... Qxf2+ {[%clk 0:01:53]} 38. Re2 {[%clk 0:05:16.6]} 38...
Qf1 {[%clk 0:01:42.1]} 39. Rxe5 {[%clk 0:05:11.2]} 39... fxe5 {[%clk 0:01:42.5]}
40. Qxe5+ {[%clk 0:05:13.1]} 40... Kg8 {[%clk 0:01:42.3]} 41. Qg5+ {[%clk
0:05:05.3]} 41... Kf8 {[%clk 0:01:35.7]} 42. Qd8+ {[%clk 0:05:07.2]} 42... Kg7
{[%clk 0:01:37]} 43. Qxd4+ {[%clk 0:05:06.8]} 43... Kh6 {[%clk 0:01:36.4]} 44.
Qe3+ {[%clk 0:04:59.6]} 44... Kg7 {[%clk 0:01:33.5]} 45. c5 {[%clk 0:04:52.3]}
45... Qg2+ {[%clk 0:01:29.9]} 46. Kc3 {[%clk 0:04:50.3]} 46... Qxa2 {[%clk
0:01:29.6]} 47. c6 {[%clk 0:04:45.5]} 47... Qa1+ {[%clk 0:01:26.8]} 48. Kb4
{[%clk 0:04:41.3]} 48... Qa6 {[%clk 0:01:22]} 49. Qc5 {[%clk 0:04:28.7]} 49...
Qc8 {[%clk 0:01:19.7]} 50. c7 {[%clk 0:04:24.8]} 50... Qb7+ {[%clk 0:01:14.2]}
51. Ka3 {[%clk 0:04:14.9]} 51... Qa6+ {[%clk 0:01:12.2]} 52. Kb2 {[%clk
0:04:14.3]} 52... Qe2+ {[%clk 0:01:02.9]} 53. Qc2 {[%clk 0:04:06.2]} 53... Qe5+
{[%clk 0:01:03.2]} 54. Qc3 {[%clk 0:04:03.7]} 1-0